[Event "EYCC Open-U18 2019"]
[Site "Bratislava"]
[Date "2019.08.09"]
[Round "8.24"]
[White "Van Foreest, Lucas"]
[Black "Marzo Pie, Xavier"]
[Result "1-0"]
[ECO "B06"]
[WhiteElo "2521"]
[BlackElo "2202"]
[Annotator "ChessBase"]
[PlyCount "119"]
[EventDate "2019.08.02"]
[EventType "swiss"]
[EventCountry "SVK"]
[SourceTitle "playchess.com"]
[Source "ChessBase"]
[SourceQuality "1"]
[TimeControl "40/5400+30:1800+30"]

1. e4 {[%emt 0:00:00]} g6 {[%emt 0:00:00]} 2. d4 {[%emt 0:00:00]} Bg7 {[%emt 0:00:00]} 3. Nf3 {[%emt 0:00:00]} d6 {[%emt 0:00:00]} 4. Bc4 {[%emt 0:00:11]} Nf6 {[%emt 0:01:30]} 5. Qe2 {[%emt 0:00:13]} O-O {[%emt 0:03:22]} 6. e5 {[%emt 0:00:11]} dxe5 {[%emt 0:01:07]} 7. dxe5 {[%emt 0:00:06]} Nd5 {[%emt 0:00:19]} 8. O-O {[%emt 0:00:10]} c6 {[%emt 0:13:16]} 9. Rd1 {[%emt 0:13:20]} Be6 {[%emt 0:13:16]} 10. Bb3 {[%emt 0:15:45]} Qc7 {[%emt 0:12:49]} 11. c4 {[%emt 0:01:01]} Nb6 {[%emt 0:00:03]} 12. Bf4 {[%emt 0:03:06]} N8d7 {[%emt 0:00:27]} 13. Nbd2 {[%emt 0:00:48]} Nc5 {[%emt 0:06:29]} 14. Bc2 {[%emt 0:05:54]} Bg4 {[%emt 0:01:22]} 15. h3 {[%emt 0:06:01]} Ne6 {[%emt 0:00:32]} 16. hxg4 {[%emt 0:09:57]} Nxf4 {[%emt 0:00:04]} 17. Qe3 {[%emt 0:00:19]} Ne6 {[%emt 0:00:13]} 18. b3 {[%emt 0:22:27]} Rfd8 {[%emt 0:09:06]} 19. Re1 {[%emt 0:02:28]} Rd7 {[%emt 0:01:59]} 20. Nf1 {[%emt 0:00:17]} Rad8 {[%emt 0:00:56]} 21. Ng3 {[%emt 0:00:12]} c5 {[%emt 0:18:54]} 22. Ne2 {[%emt 0:00:17]} Nd4 {[%emt 0:01:17]} 23. Nexd4 {[%emt 0:00:10]} cxd4 {[%emt 0:00:05]} 24. Qd3 {[%emt 0:00:20]} e6 {[%emt 0:01:33]} 25. Re4 {[%emt 0:00:12]} Re7 {[%emt 0:00:15]} 26. g5 {[%emt 0:03:56]} Nd7 {[%emt 0:02:27]} 27. Rxd4 {[%emt 0:01:01]} Rde8 {[%emt 0:00:13]} 28. Rd1 {[%emt 0:02:47]} Nxe5 {[%emt 0:00:14]} 29. Nxe5 {[%emt 0:00:29]} Qxe5 {[%emt 0:00:04]} 30. Rg4 {[%emt 0:00:58]} Rc7 {[%emt 0:01:27]} 31. Qf3 {[%emt 0:00:37]} b5 {[%emt 0:00:28]} 32. Bd3 {[%emt 0:00:55]} a6 {[%emt 0:03:35]} 33. Bf1 {[%emt 0:00:19]} Qf5 {[%emt 0:01:09]} 34. cxb5 {[%emt 0:02:23]} axb5 {[%emt 0:00:08]} 35. Qxf5 {[%emt 0:00:36]} gxf5 {[%emt 0:00:23]} 36. Rb4 {[%emt 0:00:20]} Rc2 {[%emt 0:00:02]} 37. Bxb5 {[%emt 0:00:17]} Rb8 {[%emt 0:02:57]} 38. Bd3 {[%emt 0:07:43]} Rxb4 {[%emt 0:00:17]} 39. Bxc2 {[%emt 0:00:02]} Rd4 {[%emt 0:00:56]} 40. Kf1 {[%emt 0:00:00]} Kf8 {[%emt 0:00:00]} 41. Ke2 {[%emt 0:02:52]} Ke7 {[%emt 0:02:42]} 42. Rxd4 {[%emt 0:04:40]} Bxd4 {[%emt 0:00:06]} 43. f3 {[%emt 0:00:04]} Bb2 {[%emt 0:05:35]} 44. Kd3 {[%emt 0:00:44]} Bc1 {[%emt 0:00:33]} 45. a4 {[%emt 0:00:15]} Bxg5 {[%emt 0:00:20]} 46. a5 {[%emt 0:00:08]} Kd6 {[%emt 0:00:14]} 47. b4 {[%emt 0:00:23]} Kc6 {[%emt 0:02:32]} 48. Ba4+ {[%emt 0:01:51]} Kb7 {[%emt 0:00:27]} 49. Be8 {[%emt 0:00:10]} e5 {[%emt 0:01:35]} 50. Bxf7 {[%emt 0:01:38]} e4+ {[%emt 0:00:05]} 51. fxe4 {[%emt 0:00:04]} fxe4+ {[%emt 0:00:12]} 52. Kc4 {[%emt 0:00:09]} e3 {[%emt 0:00:09]} 53. Bh5 {[%emt 0:00:18]} Ka6 {[%emt 0:01:22]} 54. Kb3 {[%emt 0:00:23]} Kb5 {[%emt 0:06:58]} 55. Be2+ {[%emt 0:00:23]} Kc6 {[%emt 0:00:04]} 56. Kc4 {[%emt 0:00:47]} Kb7 {[%emt 0:02:22]} 57. b5 {[%emt 0:00:18]} Be7 {[%emt 0:00:33]} 58. Bf3+ {[%emt 0:01:08]} Ka7 {[%emt 0:00:44]} 59. Kb3 {[%emt 0:00:16]} h5 {[%emt 0:04:28]} 60. Bxh5 {[%emt 0:00:23]} 1-0

[Event "EYCC Open-U18 2019"]
[Site "Bratislava"]
[Date "2019.08.09"]
[Round "8.25"]
[White "Ludvik, Tomas"]
[Black "Pirard, Natan"]
[Result "1-0"]
[ECO "A04"]
[WhiteElo "2334"]
[BlackElo "2153"]
[Annotator "NA"]
[PlyCount "81"]
[EventDate "2019.08.02"]
[EventType "swiss"]
[EventCountry "SVK"]
[SourceTitle "playchess.com"]
[Source "ChessBase"]
[SourceQuality "1"]
[TimeControl "40/5400+30:1800+30"]

1. Nf3 {[%emt 0:00:00]} g6 {[%emt 0:00:00]} 2. g3 {[%emt 0:01:37]} Bg7 {[%emt 0:00:00]} 3. Bg2 {[%emt 0:00:05]} e5 {[%emt 0:00:28]} 4. d3 {[%emt 0:00:50]} Ne7 {[%emt 0:01:11]} 5. e4 {[%emt 0:00:58]} O-O {[%emt 0:00:10]} 6. O-O {[%emt 0:00:07]} Nbc6 7. Nbd2 {[%emt 0:01:17]} h6 {[%emt 0:02:40]} 8. Nc4 {[%emt 0:02:37]} d6 {[%emt 0:02:34]} 9. c3 {[%emt 0:03:54]} Be6 {[%emt 0:00:52]} 10. Nfd2 {[%emt 0:05:37]} d5 {[%emt 0:03:28]} 11. exd5 {[%emt 0:04:26]} Bxd5 {[%emt 0:03:48]} 12. f3 {[%emt 0:08:16]} Qd7 {[%emt 0:05:08]} 13. Ne4 {[%emt 0:02:41]} b6 {[%emt 0:10:23]} 14. Bxh6 {[%emt 0:07:16]} Rad8 {[%emt 0:11:39]} 15. Bxg7 {[%emt 0:13:17]} Kxg7 {[%emt 0:00:07]} 16. Ne3 {[%emt 0:06:26]} Be6 {[%emt 0:02:56]} 17. Nf2 {[%emt 0:01:46]} f5 {[%emt 0:04:57]} 18. f4 {[%emt 0:01:46]} exf4 {[%emt 0:01:19]} 19. gxf4 {[%emt 0:02:25]} Nd5 {[%emt 0:12:39]} 20. Qf3 {[%emt 0:01:09]} Nxe3 {[%emt 0:09:38]} 21. Qxe3 {[%emt 0:00:02]} Rfe8 {[%emt 0:05:15]} 22. Qf3 {[%emt 0:06:10]} Ne7 {[%emt 0:01:20]} 23. d4 {[%emt 0:01:31]} Bd5 {[%emt 0:02:53]} 24. Qg3 {[%emt 0:01:31]} Bxg2 {[%emt 0:05:41]} 25. Kxg2 {[%emt 0:00:18]} Nd5 {[%emt 0:03:02]} 26. Rae1 {[%emt 0:04:05]} Qb5 {[%emt 0:02:53]} 27. Nd3 {[%emt 0:03:26]} Nf6 {[%emt 0:03:14]} 28. Ne5 {[%emt 0:05:25]} Ng4 {[%emt 0:01:28]} 29. b3 {[%emt 0:03:06]} c5 {[%emt 0:01:28]} 30. c4 {[%emt 0:02:18]} Qa5 {[%emt 0:00:38]} 31. d5 {[%emt 0:03:18]} Qxa2+ {[%emt 0:01:00]} 32. Kg1 {[%emt 0:00:07]} Qd2 {[%emt 0:01:24]} 33. h3 Qd4+ {[%emt 0:00:42]} 34. Kh1 {[%emt 0:03:28]} Rh8 {[%emt 0:00:46]} 35. Nxg4 {[%emt 0:00:53]} fxg4 {[%emt 0:00:05]} 36. Qxg4 {[%emt 0:00:23]} Qc3 {[%emt 0:00:46]} 37. Kg2 {[%emt 0:00:50]} Qb2+ {[%emt 0:00:57]} 38. Rf2 {[%emt 0:02:35]} Qxb3 {[%emt 0:00:34]} 39. Re6 {[%emt 0:00:58]} Rh6 {[%emt 0:00:37]} 40. f5 {[%emt 0:00:00]} Rdh8 {[%emt 0:00:00]} 41. f6+ {[%emt 0:01:35]} 1-0

[Event "EYCC Open-U18 2019"]
[Site "Bratislava"]
[Date "2019.08.09"]
[Round "8.26"]
[White "Castillo Dalmau, Albert"]
[Black "Leisch, Lukas"]
[Result "0-1"]
[ECO "E68"]
[WhiteElo "2252"]
[BlackElo "2327"]
[Annotator "NA"]
[PlyCount "118"]
[EventDate "2019.08.02"]
[EventType "swiss"]
[EventCountry "SVK"]
[SourceTitle "playchess.com"]
[Source "ChessBase"]
[SourceQuality "1"]
[TimeControl "40/5400+30:1800+30"]

1. Nf3 {[%emt 0:00:00]} Nf6 {[%emt 0:00:00]} 2. c4 {[%emt 0:00:18]} g6 {[%emt 0:00:00]} 3. g3 {[%emt 0:00:14]} Bg7 {[%emt 0:00:00]} 4. Bg2 {[%emt 0:00:18]} O-O {[%emt 0:00:00]} 5. O-O {[%emt 0:00:12]} d6 {[%emt 0:00:19]} 6. d4 {[%emt 0:00:51]} Nbd7 {[%emt 0:00:27]} 7. Nc3 {[%emt 0:00:23]} e5 {[%emt 0:00:12]} 8. e4 {[%emt 0:00:12]} exd4 {[%emt 0:00:07]} 9. Nxd4 {[%emt 0:00:19]} Re8 {[%emt 0:00:17]} 10. h3 {[%emt 0:00:24]} a6 {[%emt 0:00:23]} 11. b3 {[%emt 0:05:55]} Rb8 {[%emt 0:00:58]} 12. Bb2 {[%emt 0:12:05]} c5 {[%emt 0:01:22]} 13. Nc2 {[%emt 0:00:11]} b5 {[%emt 0:13:03]} 14. cxb5 {[%emt 0:02:32]} axb5 {[%emt 0:01:05]} 15. Re1 {[%emt 0:03:40]} b4 {[%emt 0:04:41]} 16. Nd5 {[%emt 0:02:19]} Nxd5 {[%emt 0:03:35]} 17. Bxg7 {[%emt 0:00:18]} Kxg7 {[%emt 0:00:19]} 18. Qxd5 {[%emt 0:00:46]} Nf6 {[%emt 0:09:45]} 19. Qd3 {[%emt 0:00:26]} Bb7 {[%emt 0:05:32]} 20. Rad1 {[%emt 0:02:46]} Qa5 {[%emt 0:10:53]} 21. Qxd6 {[%emt 0:41:02]} Rbd8 {[%emt 0:01:37]} 22. Qf4 {[%emt 0:00:02]} Rxd1 {[%emt 0:00:19]} 23. Rxd1 {[%emt 0:00:04]} Bxe4 {[%emt 0:10:21]} 24. Rd6 {[%emt 0:02:12]} Nh5 {[%emt 0:05:26]} 25. Qe3 {[%emt 0:00:52]} Bc6 {[%emt 0:03:58]} 26. Qd3 {[%emt 0:01:53]} Bxg2 {[%emt 0:03:28]} 27. Kxg2 {[%emt 0:00:02]} Qxa2 {[%emt 0:01:05]} 28. Ne3 {[%emt 0:00:41]} Qa1 {[%emt 0:02:38]} 29. Rd7 {[%emt 0:01:42]} Nf6 {[%emt 0:02:15]} 30. Rc7 {[%emt 0:02:53]} Qe5 {[%emt 0:01:55]} 31. Rc6 {[%emt 0:01:04]} Rd8 {[%emt 0:03:56]} 32. Qc4 {[%emt 0:03:50]} Qe4+ {[%emt 0:01:35]} 33. Qxe4 {[%emt 0:01:08]} Nxe4 {[%emt 0:00:05]} 34. Nc4 {[%emt 0:00:43]} Rd3 {[%emt 0:01:08]} 35. f3 {[%emt 0:01:10]} Ng5 {[%emt 0:02:45]} 36. Rxc5 {[%emt 0:02:14]} Nxf3 {[%emt 0:00:27]} 37. Na5 {[%emt 0:02:16]} Nd4 {[%emt 0:01:19]} 38. Rc4 {[%emt 0:01:53]} Nf5 {[%emt 0:06:06]} 39. Rxb4 {[%emt 0:00:05]} Rxg3+ {[%emt 0:00:05]} 40. Kh2 {[%emt 0:00:00]} h5 {[%emt 0:00:00]} 41. Rb7 {[%emt 0:10:35]} Rc3 {[%emt 0:02:40]} 42. b4 {[%emt 0:00:19]} Rc2+ {[%emt 0:00:19]} 43. Kg1 {[%emt 0:00:05]} g5 {[%emt 0:07:03]} 44. b5 {[%emt 0:00:29]} g4 {[%emt 0:00:22]} 45. hxg4 {[%emt 0:00:09]} hxg4 {[%emt 0:00:07]} 46. Rd7 {[%emt 0:07:09]} Nh4 {[%emt 0:05:33]} 47. Rd3 {[%emt 0:00:33]} Rb2 {[%emt 0:02:32]} 48. Nc4 {[%emt 0:02:01]} Rxb5 {[%emt 0:01:07]} 49. Kf2 {[%emt 0:00:38]} Nf5 {[%emt 0:03:18]} 50. Rd2 {[%emt 0:00:37]} Kg6 {[%emt 0:00:57]} 51. Re2 {[%emt 0:00:17]} f6 {[%emt 0:01:41]} 52. Nd2 {[%emt 0:00:03]} Rb2 {[%emt 0:01:43]} 53. Kg2 {[%emt 0:00:02]} Rc2 {[%emt 0:01:13]} 54. Kg1 {[%emt 0:02:53]} Nd4 {[%emt 0:00:30]} 55. Rg2 {[%emt 0:00:18]} Rxd2 {[%emt 0:01:04]} 56. Rxg4+ {[%emt 0:00:11]} Kf5 {[%emt 0:00:06]} 57. Rg8 {[%emt 0:00:03]} Kf4 {[%emt 0:00:22]} 58. Ra8 {[%emt 0:00:02]} Kg3 {[%emt 0:00:49]} 59. Ra3+ {[%emt 0:00:05]} Nf3+ {[%emt 0:00:10]} 0-1

[Event "EYCC Open-U18 2019"]
[Site "Bratislava"]
[Date "2019.08.09"]
[Round "8.28"]
[White "Brozyna, Mateusz"]
[Black "Martinez Fernandez, Adrian"]
[Result "1-0"]
[ECO "B90"]
[WhiteElo "2258"]
[BlackElo "2311"]
[Annotator "NA"]
[PlyCount "115"]
[EventDate "2019.08.02"]
[EventType "swiss"]
[EventCountry "SVK"]
[SourceTitle "playchess.com"]
[Source "ChessBase"]
[SourceQuality "1"]
[TimeControl "40/5400+30:1800+30"]

1. e4 {[%emt 0:00:00]} c5 {[%emt 0:00:00]} 2. Nf3 {[%emt 0:00:00]} d6 {[%emt 0:00:00]} 3. d4 {[%emt 0:00:00]} cxd4 4. Nxd4 {[%emt 0:00:00]} Nf6 {[%emt 0:00:00]} 5. Nc3 {[%emt 0:00:00]} a6 {[%emt 0:00:00]} 6. Nb3 {[%emt 0:00:03]} g6 {[%emt 0:00:22]} 7. Be3 {[%emt 0:00:08]} Nbd7 {[%emt 0:00:26]} 8. f3 {[%emt 0:00:31]} b5 {[%emt 0:03:32]} 9. a4 {[%emt 0:03:30]} b4 {[%emt 0:02:50]} 10. Na2 {[%emt 0:00:48]} a5 {[%emt 0:05:48]} 11. c3 {[%emt 0:00:35]} bxc3 {[%emt 0:01:27]} 12. Nxc3 {[%emt 0:00:07]} Bg7 {[%emt 0:00:08]} 13. Be2 {[%emt 0:04:51]} O-O {[%emt 0:00:18]} 14. O-O {[%emt 0:01:10]} Ne5 {[%emt 0:08:48]} 15. Rc1 {[%emt 0:17:09]} Rb8 {[%emt 0:10:55]} 16. Nb5 {[%emt 0:03:55]} Bd7 {[%emt 0:00:34]} 17. Qd2 {[%emt 0:08:33]} Nc6 {[%emt 0:00:39]} 18. Rfd1 {[%emt 0:02:11]} Nb4 {[%emt 0:15:28]} 19. Kh1 {[%emt 0:07:52]} Bc6 {[%emt 0:11:37]} 20. N3d4 {[%emt 0:12:48]} Bb7 {[%emt 0:02:00]} 21. Nc2 {[%emt 0:01:12]} Nc6 {[%emt 0:01:53]} 22. Nca3 {[%emt 0:02:49]} Nd7 {[%emt 0:01:30]} 23. Nc4 {[%emt 0:02:46]} Nb4 {[%emt 0:01:08]} 24. Bh6 {[%emt 0:12:25]} Nc5 {[%emt 0:02:36]} 25. Bxg7 {[%emt 0:00:12]} Kxg7 {[%emt 0:00:02]} 26. b3 {[%emt 0:00:16]} Kg8 {[%emt 0:01:33]} 27. Qh6 {[%emt 0:05:16]} Rc8 {[%emt 0:08:30]} 28. e5 {[%emt 0:03:50]} Nxb3 {[%emt 0:06:18]} 29. Rb1 {[%emt 0:00:48]} Nc5 {[%emt 0:00:57]} 30. Rd4 {[%emt 0:01:21]} f6 {[%emt 0:03:57]} 31. exd6 {[%emt 0:01:09]} e5 {[%emt 0:01:12]} 32. Rh4 {[%emt 0:00:38]} Rf7 {[%emt 0:00:01]} 33. Nxa5 {[%emt 0:00:25]} Qxa5 {[%emt 0:00:27]} 34. Rhxb4 {[%emt 0:01:17]} Bd5 {[%emt 0:02:54]} 35. Qd2 {[%emt 0:05:03]} Be6 {[%emt 0:02:08]} 36. Nc7 {[%emt 0:00:58]} Nb3 {[%emt 0:00:47]} 37. Qe1 {[%emt 0:00:39]} Rfxc7 {[%emt 0:02:27]} 38. dxc7 Kg7 39. R4xb3 {[%emt 0:00:54]} Qxe1+ {[%emt 0:00:07]} 40. Rxe1 {[%emt 0:00:00]} Bxb3 {[%emt 0:00:00]} 41. Rc1 {[%emt 0:00:11]} Be6 {[%emt 0:01:54]} 42. Rc6 {[%emt 0:14:26]} Bd7 {[%emt 0:06:32]} 43. Ba6 {[%emt 0:00:59]} Ra8 {[%emt 0:00:13]} 44. Rd6 {[%emt 0:00:52]} Bc8 {[%emt 0:00:31]} 45. Bxc8 {[%emt 0:00:57]} Rxc8 {[%emt 0:00:28]} 46. Rd7+ {[%emt 0:00:06]} Kh6 {[%emt 0:00:13]} 47. Kg1 {[%emt 0:00:40]} Kg5 {[%emt 0:00:21]} 48. Rxh7 {[%emt 0:00:37]} Kf5 {[%emt 0:00:06]} 49. Re7 {[%emt 0:00:34]} g5 {[%emt 0:00:12]} 50. Kf2 {[%emt 0:00:35]} Kg6 {[%emt 0:00:04]} 51. g4 {[%emt 0:01:18]} f5 {[%emt 0:00:04]} 52. Rxe5 {[%emt 0:00:36]} fxg4 {[%emt 0:00:25]} 53. Rc5 {[%emt 0:00:11]} Kf6 {[%emt 0:00:37]} 54. fxg4 {[%emt 0:00:07]} Ke6 {[%emt 0:00:03]} 55. Kg3 {[%emt 0:00:10]} Kd7 {[%emt 0:00:09]} 56. Rxg5 {[%emt 0:00:17]} Ra8 {[%emt 0:00:09]} 57. Rc5 {[%emt 0:00:09]} Kc8 {[%emt 0:00:05]} 58. a5 {[%emt 0:00:06]} 1-0

[Event "EYCC Open-U18 2019"]
[Site "Bratislava"]
[Date "2019.08.09"]
[Round "8.29"]
[White "Santryan, Davit"]
[Black "Jakab, Bela"]
[Result "1-0"]
[ECO "D15"]
[WhiteElo "2167"]
[BlackElo "2278"]
[Annotator "NA"]
[PlyCount "95"]
[EventDate "2019.08.02"]
[EventType "swiss"]
[EventCountry "SVK"]
[SourceTitle "playchess.com"]
[Source "ChessBase"]
[SourceQuality "1"]
[TimeControl "40/5400+30:1800+30"]

1. d4 {[%emt 0:00:00]} d5 {[%emt 0:00:00]} 2. Nf3 {[%emt 0:00:00]} Nf6 {[%emt 0:00:00]} 3. c4 {[%emt 0:01:42]} c6 {[%emt 0:00:00]} 4. Nc3 {[%emt 0:01:43]} a6 {[%emt 0:00:03]} 5. Bg5 {[%emt 0:06:21]} Ne4 {[%emt 0:07:57]} 6. Bf4 {[%emt 0:05:10]} Nxc3 {[%emt 0:07:13]} 7. bxc3 {[%emt 0:01:29]} dxc4 {[%emt 0:00:10]} 8. Bxb8 {[%emt 0:16:32]} Rxb8 {[%emt 0:00:08]} 9. Ne5 {[%emt 0:00:05]} Qd5 {[%emt 0:10:27]} 10. e3 {[%emt 0:09:40]} b5 {[%emt 0:01:24]} 11. Rb1 {[%emt 0:01:08]} Ra8 {[%emt 0:12:52]} 12. Be2 {[%emt 0:05:30]} Bf5 {[%emt 0:02:54]} 13. O-O {[%emt 0:08:35]} f6 {[%emt 0:07:13]} 14. Bf3 {[%emt 0:21:50]} Be4 {[%emt 0:00:09]} 15. Bxe4 {[%emt 0:01:19]} Qxe4 {[%emt 0:00:06]} 16. Nf3 {[%emt 0:02:00]} e6 {[%emt 0:02:44]} 17. Nd2 {[%emt 0:01:27]} Qd5 {[%emt 0:00:44]} 18. e4 {[%emt 0:00:42]} Qd7 {[%emt 0:00:14]} 19. Qh5+ {[%emt 0:01:11]} Qf7 {[%emt 0:01:52]} 20. Qf3 {[%emt 0:00:31]} e5 {[%emt 0:05:48]} 21. d5 {[%emt 0:08:22]} cxd5 {[%emt 0:02:00]} 22. a4 {[%emt 0:01:12]} Rd8 {[%emt 0:15:28]} 23. axb5 {[%emt 0:01:00]} dxe4 {[%emt 0:00:26]} 24. Qxe4 {[%emt 0:02:37]} Rxd2 {[%emt 0:16:46]} 25. bxa6 {[%emt 0:00:21]} Rd8 {[%emt 0:00:14]} 26. Rb7 {[%emt 0:01:42]} Qe6 {[%emt 0:01:32]} 27. a7 {[%emt 0:00:36]} Qa6 {[%emt 0:01:43]} 28. Rb8 {[%emt 0:00:39]} Qxa7 {[%emt 0:00:25]} 29. Qc6+ {[%emt 0:00:19]} Ke7 {[%emt 0:01:40]} 30. Rb7+ {[%emt 0:00:33]} Qxb7 {[%emt 0:00:04]} 31. Qxb7+ {[%emt 0:00:03]} Ke6 {[%emt 0:00:15]} 32. Qc6+ {[%emt 0:00:58]} Bd6 {[%emt 0:00:05]} 33. Qxc4+ {[%emt 0:00:31]} Ke7 {[%emt 0:00:05]} 34. Ra1 {[%emt 0:00:37]} Rd7 {[%emt 0:00:17]} 35. g3 {[%emt 0:00:14]} Rc7 {[%emt 0:00:10]} 36. Qg4 {[%emt 0:00:32]} g6 {[%emt 0:00:14]} 37. c4 {[%emt 0:00:41]} Rhc8 {[%emt 0:00:20]} 38. Qh4 {[%emt 0:00:12]} h5 {[%emt 0:00:35]} 39. Ra4 {[%emt 0:00:38]} Rd7 {[%emt 0:00:56]} 40. Ra6 {[%emt 0:00:00]} Rc5 {[%emt 0:00:00]} 41. Kg2 {[%emt 0:07:39]} Kf7 {[%emt 0:02:22]} 42. Qe4 {[%emt 0:02:34]} Be7 {[%emt 0:00:32]} 43. Ra8 {[%emt 0:06:12]} Rcc7 {[%emt 0:01:53]} 44. Qe3 {[%emt 0:03:43]} Kg7 {[%emt 0:00:21]} 45. Qb6 {[%emt 0:00:24]} Rxc4 {[%emt 0:03:13]} 46. Qe6 {[%emt 0:02:34]} Rcd4 {[%emt 0:00:17]} 47. Rg8+ {[%emt 0:00:44]} Kh6 {[%emt 0:00:24]} 48. Rh8+ {[%emt 0:00:10] Rc4 Qb6+ Rcc7 Ra8} 1-0

[Event "EYCC Open-U18 2019"]
[Site "Bratislava"]
[Date "2019.08.09"]
[Round "8.30"]
[White "Stevanic, David"]
[Black "Bekasovs, Rihards"]
[Result "1/2-1/2"]
[ECO "C18"]
[WhiteElo "2306"]
[BlackElo "2144"]
[Annotator "NA"]
[PlyCount "84"]
[EventDate "2019.08.02"]
[EventType "swiss"]
[EventCountry "SVK"]
[SourceTitle "playchess.com"]
[Source "ChessBase"]
[SourceQuality "1"]
[TimeControl "40/5400+30:1800+30"]

1. e4 {[%emt 0:00:00]} e6 {[%emt 0:00:05]} 2. d4 {[%emt 0:00:00]} d5 {[%emt 0:00:05]} 3. Nc3 {[%emt 0:00:00]} Bb4 {[%emt 0:00:05]} 4. e5 {[%emt 0:00:00]} c5 {[%emt 0:00:09]} 5. a3 {[%emt 0:00:00]} Bxc3+ 6. bxc3 {[%emt 0:00:00]} Qa5 {[%emt 0:00:16]} 7. Bd2 {[%emt 0:00:01]} Qa4 {[%emt 0:00:05]} 8. Qg4 {[%emt 0:00:09]} Kf8 {[%emt 0:00:29]} 9. c4 {[%emt 0:00:28]} Nc6 {[%emt 0:00:15]} 10. dxc5 {[%emt 0:01:18]} Nxe5 {[%emt 0:03:46]} 11. Qf4 {[%emt 0:01:05]} Nxc4 {[%emt 0:00:18]} 12. Nf3 {[%emt 0:15:02]} Ne7 {[%emt 0:04:08]} 13. Ne5 {[%emt 0:10:45]} f6 {[%emt 0:01:44]} 14. Nxc4 {[%emt 0:18:16]} dxc4 {[%emt 0:00:00]} 15. Qxc4 {[%emt 0:02:09]} Bd7 {[%emt 0:00:00]} 16. Qb3 {[%emt 0:03:42]} Qe4+ {[%emt 0:08:08]} 17. Be3 {[%emt 0:00:16]} Ba4 {[%emt 0:01:20]} 18. Qb4 {[%emt 0:03:05]} Bxc2 {[%emt 0:06:09]} 19. Bc4 {[%emt 0:07:32]} Qxg2 {[%emt 0:20:44]} 20. Kd2 {[%emt 0:00:38]} Bf5 {[%emt 0:02:27]} 21. Kc3 {[%emt 0:02:40]} Qe4 {[%emt 0:06:04]} 22. Rac1 {[%emt 0:00:29]} Nc6 {[%emt 0:06:37]} 23. Qxb7 {[%emt 0:07:25]} Qxc4+ {[%emt 0:03:11]} 24. Kxc4 {[%emt 0:00:05]} Na5+ {[%emt 0:00:00]} 25. Kb4 {[%emt 0:00:17]} Nxb7 {[%emt 0:00:05]} 26. c6 {[%emt 0:00:03]} a5+ {[%emt 0:05:28]} 27. Ka4 {[%emt 0:01:13]} Be4 {[%emt 0:10:28]} 28. cxb7 {[%emt 0:01:52]} Bxb7 {[%emt 0:00:21]} 29. Rhd1 {[%emt 0:00:37]} Bd5 {[%emt 0:00:36]} 30. Rc7 {[%emt 0:00:19]} Kg8 {[%emt 0:00:49]} 31. Rg1 {[%emt 0:04:50]} g5 {[%emt 0:00:39]} 32. Bd4 {[%emt 0:02:58]} e5 {[%emt 0:01:01]} 33. Bxe5 {[%emt 0:00:25]} fxe5 {[%emt 0:00:50]} 34. Rxg5+ {[%emt 0:00:04]} Kf8 {[%emt 0:00:14]} 35. Rxe5 {[%emt 0:01:10]} Bh1 {[%emt 0:02:26]} 36. f3 {[%emt 0:05:39]} Rg8 {[%emt 0:02:33]} 37. Rf5+ {[%emt 0:00:47]} Ke8 {[%emt 0:00:06]} 38. Rxh7 {[%emt 0:01:01]} Rd8 {[%emt 0:01:49]} 39. Re5+ {[%emt 0:05:05]} Kf8 {[%emt 0:00:01]} 40. Rxa5 {[%emt 0:00:00]} Rg7 {[%emt 0:00:00]} 41. Rh8+ {[%emt 0:04:45]} Rg8 {[%emt 0:02:57]} 42. Rh4 {[%emt 0:07:14]} Rg7 {[%emt 0:01:11]} 1/2-1/2